[Event "Titled Tuesday Blitz October 31 Early 2023"]
[White "Lorenzo De La Riva, Lazaro"]
[Black "Todev, Simeon"]
[WhiteFideId "2268809"]
[BlackFideId "2925133"]
[WhiteElo "2099"]
[BlackElo "2374"]
[Result "1-0"]
[Round "4"]
[TimeControl "180+1"]
[Date "2023.10.31"]
[WhiteClock "0:00:29"]
[BlackClock "0:00:00"]
[Board "178"]

1. e4 {[%clk 0:03:00]}  c5 {[%clk 0:03:00]} 2. Nf3 {[%clk 0:02:59]}  Nc6 {[%clk 0:03:01]} 3. d4 {[%clk 0:02:59]}  cxd4 {[%clk 0:02:49]} 4. Nxd4 {[%clk 0:03:00]}  e5 {[%clk 0:02:47]} 5. Nb5 {[%clk 0:03:00]}  a6 {[%clk 0:02:42]} 6. Nd6+ {[%clk 0:02:59]}  Bxd6 {[%clk 0:02:36]} 7. Qxd6 {[%clk 0:03:00]}  Qf6 {[%clk 0:02:37]} 8. Qd2 {[%clk 0:02:58]}  Qg6 {[%clk 0:02:31]} 9. Nc3 {[%clk 0:02:56]}  Nge7 {[%clk 0:02:30]} 10. h4 {[%clk 0:02:52]}  h5 {[%clk 0:02:23]} 11. Qg5 {[%clk 0:02:51]}  d5 {[%clk 0:02:18]} 12. Qxg6 {[%clk 0:02:48]}  fxg6 {[%clk 0:02:17]} 13. exd5 {[%clk 0:02:45]}  Nb4 {[%clk 0:02:16]} 14. Bd3 {[%clk 0:02:42]}  Bf5 {[%clk 0:02:13]} 15. O-O {[%clk 0:02:38]}  Bxd3 {[%clk 0:02:09]} 16. cxd3 {[%clk 0:02:38]}  Nexd5 {[%clk 0:02:09]} 17. Bg5 {[%clk 0:02:24]}  O-O {[%clk 0:01:55]} 18. Nxd5 {[%clk 0:02:13]}  Nxd5 {[%clk 0:01:54]} 19. Rfe1 {[%clk 0:02:13]}  Rfe8 {[%clk 0:01:48]} 20. Rac1 {[%clk 0:02:10]}  Nb4 {[%clk 0:01:45]} 21. Rc7 {[%clk 0:02:05]}  Nxd3 {[%clk 0:01:42]} 22. Re3 {[%clk 0:01:51]}  e4 {[%clk 0:01:20]} 23. Rxb7 {[%clk 0:01:51]}  Nc5 {[%clk 0:00:54]} 24. Rb6 {[%clk 0:01:43]}  Rab8 {[%clk 0:00:47]} 25. Rxg6 {[%clk 0:01:26]}  Rxb2 {[%clk 0:00:41]} 26. Rg3 {[%clk 0:01:17]}  Rb1+ {[%clk 0:00:16]} 27. Kh2 {[%clk 0:01:16]}  Kf7 {[%clk 0:00:17]} 28. Bd2 {[%clk 0:01:07]}  Ne6 {[%clk 0:00:15]} 29. Bc3 {[%clk 0:01:05]}  Rg8 {[%clk 0:00:14]} 30. f4 {[%clk 0:00:51]}  exf3 {[%clk 0:00:11]} 31. gxf3 {[%clk 0:00:47]}  Rc1 {[%clk 0:00:11]} 32. Be5 {[%clk 0:00:44]}  Rc2+ {[%clk 0:00:11]} 33. Kh3 {[%clk 0:00:43]}  Rc5 {[%clk 0:00:08]} 34. f4 {[%clk 0:00:42]}  Rxe5 {[%clk 0:00:08]} 35. fxe5 {[%clk 0:00:38]}  Nf4+ {[%clk 0:00:07]} 36. Kh2 {[%clk 0:00:39]}  Nxg6 {[%clk 0:00:08]} 37. Ra3 {[%clk 0:00:40]}  Nxe5 {[%clk 0:00:07]} 38. Rxa6 {[%clk 0:00:40]}  Rb8 {[%clk 0:00:07]} 39. Ra7+ {[%clk 0:00:40]}  Kg6 {[%clk 0:00:06]} 40. a4 {[%clk 0:00:40]}  Rb2+ {[%clk 0:00:04]} 41. Kg3 {[%clk 0:00:40]}  Ra2 {[%clk 0:00:05]} 42. Kf4 {[%clk 0:00:40]}  Nd3+ {[%clk 0:00:02]} 43. Ke3 {[%clk 0:00:40]}  Nc5 {[%clk 0:00:03]} 44. a5 {[%clk 0:00:41]}  Ra4 {[%clk 0:00:02]} 45. Kf3 {[%clk 0:00:39]}  Rxh4 {[%clk 0:00:02]} 46. Rc7 {[%clk 0:00:38]}  Na4 {[%clk 0:00:02]} 47. Rc6+ {[%clk 0:00:38]}  Kg5 {[%clk 0:00:02]} 48. a6 {[%clk 0:00:39]}  Rh3+ {[%clk 0:00:02]} 49. Ke4 {[%clk 0:00:37]}  Ra3 {[%clk 0:00:03]} 50. a7 {[%clk 0:00:33]}  Nc3+ {[%clk 0:00:03]} 51. Rxc3 {[%clk 0:00:32]}  Ra4+ {[%clk 0:00:03]} 52. Kd5 {[%clk 0:00:29]}  Rxa7 {[%clk 0:00:04]} 53. Rg3+ {[%clk 0:00:28]}  Kf4 {[%clk 0:00:00]} 54. Rg1 {[%clk 0:00:29]} 1-0


[Site "https://www.chess.com"]

[Event "Titled Tuesday Blitz October 31 Early 2023"]
[White "Levine, David"]
[Black "Pein, Jonathan"]
[WhiteFideId "2011611"]
[BlackFideId "417092"]
[WhiteElo "2056"]
[BlackElo "2316"]
[Result "1-0"]
[Round "4"]
[TimeControl "180+1"]
[Date "2023.10.31"]
[WhiteClock "0:00:07"]
[BlackClock "0:00:03"]
[Board "180"]

1. d4 {[%clk 0:02:58]}  a6 {[%clk 0:02:53]} 2. e4 {[%clk 0:02:57]}  b5 {[%clk 0:02:53]} 3. Bd3 {[%clk 0:02:57]}  Bb7 {[%clk 0:02:53]} 4. Qe2 {[%clk 0:02:56]}  e6 {[%clk 0:02:53]} 5. a4 {[%clk 0:02:52]}  b4 {[%clk 0:02:53]} 6. Nd2 {[%clk 0:02:49]}  c5 {[%clk 0:02:49]} 7. Ngf3 {[%clk 0:02:46]}  cxd4 {[%clk 0:02:47]} 8. Nxd4 {[%clk 0:02:46]}  Qc7 {[%clk 0:02:40]} 9. a5 {[%clk 0:02:43]}  Nc6 {[%clk 0:02:38]} 10. Nxc6 {[%clk 0:02:36]}  Bxc6 {[%clk 0:02:38]} 11. Nc4 {[%clk 0:02:31]}  Bc5 {[%clk 0:02:32]} 12. O-O {[%clk 0:02:21]}  Ne7 {[%clk 0:02:29]} 13. Be3 {[%clk 0:02:14]}  Bxe3 {[%clk 0:02:26]} 14. Qxe3 {[%clk 0:02:14]}  d5 {[%clk 0:02:22]} 15. Nb6 {[%clk 0:02:09]}  Rd8 {[%clk 0:02:22]} 16. exd5 {[%clk 0:02:05]}  Nxd5 {[%clk 0:02:21]} 17. Nxd5 {[%clk 0:02:04]}  Bxd5 {[%clk 0:02:22]} 18. Bxa6 {[%clk 0:02:03]}  Qc6 {[%clk 0:02:07]} 19. Qe2 {[%clk 0:01:47]}  O-O {[%clk 0:02:01]} 20. Bb5 {[%clk 0:01:43]}  Qa8 {[%clk 0:01:57]} 21. f3 {[%clk 0:01:36]}  Qa7+ {[%clk 0:01:53]} 22. Kh1 {[%clk 0:01:35]}  Ra8 {[%clk 0:01:51]} 23. Bc4 {[%clk 0:01:17]}  Bc6 {[%clk 0:01:45]} 24. Rfd1 {[%clk 0:01:12]}  Qc5 {[%clk 0:01:45]} 25. a6 {[%clk 0:01:10]}  Rfc8 {[%clk 0:01:43]} 26. b3 {[%clk 0:01:09]}  h6 {[%clk 0:01:41]} 27. Qd2 {[%clk 0:01:05]}  Bb5 {[%clk 0:01:39]} 28. Ra5 {[%clk 0:00:53]}  Rcb8 {[%clk 0:01:21]} 29. a7 {[%clk 0:00:30]}  Rxa7 {[%clk 0:00:51]} 30. Rxa7 {[%clk 0:00:27]}  Qxa7 {[%clk 0:00:22]} 31. Bxb5 {[%clk 0:00:23]}  Rxb5 {[%clk 0:00:22]} 32. Qd8+ {[%clk 0:00:23]}  Kh7 {[%clk 0:00:21]} 33. Qd3+ {[%clk 0:00:22]}  Rf5 {[%clk 0:00:22]} 34. g4 {[%clk 0:00:22]}  g6 {[%clk 0:00:09]} 35. gxf5 {[%clk 0:00:21]}  exf5 {[%clk 0:00:10]} 36. Kg2 {[%clk 0:00:22]}  Qc7 {[%clk 0:00:10]} 37. Rd2 {[%clk 0:00:22]}  Qf4 {[%clk 0:00:09]} 38. Re2 {[%clk 0:00:20]}  Qg5+ {[%clk 0:00:10]} 39. Kf1 {[%clk 0:00:17]}  Qc1+ {[%clk 0:00:10]} 40. Re1 {[%clk 0:00:16]}  Qf4 {[%clk 0:00:10]} 41. Qe2 {[%clk 0:00:15]}  h5 {[%clk 0:00:11]} 42. Qg2 {[%clk 0:00:14]}  h4 {[%clk 0:00:11]} 43. h3 {[%clk 0:00:14]}  Qd4 {[%clk 0:00:08]} 44. Qf2 {[%clk 0:00:13]}  Qf4 {[%clk 0:00:09]} 45. Kg1 {[%clk 0:00:13]}  Kg7 {[%clk 0:00:08]} 46. Kh1 {[%clk 0:00:13]}  Kh7 {[%clk 0:00:08]} 47. Qg2 {[%clk 0:00:12]}  Qd6 {[%clk 0:00:08]} 48. Qf2 {[%clk 0:00:11]}  g5 {[%clk 0:00:08]} 49. f4 {[%clk 0:00:11]}  Qd5+ {[%clk 0:00:08]} 50. Kh2 {[%clk 0:00:10]}  f6 {[%clk 0:00:06]} 51. fxg5 {[%clk 0:00:10]}  fxg5 {[%clk 0:00:06]} 52. Re7+ {[%clk 0:00:09]}  Kg8 {[%clk 0:00:06]} 53. Qe2 {[%clk 0:00:08]}  Qd6+ {[%clk 0:00:06]} 54. Qe5 {[%clk 0:00:07]}  Qd2+ {[%clk 0:00:06]} 55. Qe2 {[%clk 0:00:07]}  Qf4+ {[%clk 0:00:06]} 56. Kh1 {[%clk 0:00:07]}  Qc1+ {[%clk 0:00:06]} 57. Kg2 {[%clk 0:00:07]}  Qf4 {[%clk 0:00:03]} 58. Qe6+ {[%clk 0:00:07]}  Kh8 {[%clk 0:00:03]} 59. Qf6+ {[%clk 0:00:07]}  Kg8 {[%clk 0:00:03]} 60. Qg7# {[%clk 0:00:07]} 1-0


[Site "https://www.chess.com"]

[Event "Titled Tuesday Blitz October 31 Early 2023"]
[White "ivana_999"]
[Black "gpsji27"]
[WhiteElo "2026"]
[BlackElo "2286"]
[Result "0-1"]
[Round "4"]
[TimeControl "180+1"]
[Date "2023.10.31"]
[WhiteClock "0:00:19"]
[BlackClock "0:00:14"]
[Board "182"]

1. d4 {[%clk 0:03:00]}  d5 {[%clk 0:02:55]} 2. c4 {[%clk 0:03:01]}  e6 {[%clk 0:02:55]} 3. Nc3 {[%clk 0:02:59]}  Nf6 {[%clk 0:02:54]} 4. Nf3 {[%clk 0:02:59]}  Be7 {[%clk 0:02:53]} 5. Bg5 {[%clk 0:02:59]}  Nbd7 {[%clk 0:02:51]} 6. e3 {[%clk 0:02:59]}  h6 {[%clk 0:02:49]} 7. Bh4 {[%clk 0:02:58]}  O-O {[%clk 0:02:50]} 8. cxd5 {[%clk 0:02:55]}  exd5 {[%clk 0:02:49]} 9. Bd3 {[%clk 0:02:54]}  c6 {[%clk 0:02:49]} 10. Qc2 {[%clk 0:02:54]}  Re8 {[%clk 0:02:01]} 11. O-O {[%clk 0:02:52]}  Ne4 {[%clk 0:02:00]} 12. Bxe7 {[%clk 0:02:48]}  Qxe7 {[%clk 0:02:01]} 13. Bxe4 {[%clk 0:02:30]}  dxe4 {[%clk 0:01:58]} 14. Nd2 {[%clk 0:02:30]}  f5 {[%clk 0:01:55]} 15. d5 {[%clk 0:02:27]}  Ne5 {[%clk 0:01:41]} 16. dxc6 {[%clk 0:02:23]}  bxc6 {[%clk 0:01:42]} 17. Ne2 {[%clk 0:02:15]}  Ba6 {[%clk 0:01:39]} 18. Rfe1 {[%clk 0:02:11]}  Bd3 {[%clk 0:01:35]} 19. Qb3+ {[%clk 0:02:11]}  Kh8 {[%clk 0:01:30]} 20. Nf4 {[%clk 0:02:11]}  Rab8 {[%clk 0:01:22]} 21. Qc3 {[%clk 0:02:11]}  Qd6 {[%clk 0:01:12]} 22. Rad1 {[%clk 0:02:00]}  Red8 {[%clk 0:00:58]} 23. Qxe5 {[%clk 0:01:50]}  Qxe5 {[%clk 0:00:50]} 24. Ng6+ {[%clk 0:01:50]}  Kh7 {[%clk 0:00:51]} 25. Nxe5 {[%clk 0:01:50]}  Rxb2 {[%clk 0:00:52]} 26. Nxd3 {[%clk 0:01:37]}  Rxd3 {[%clk 0:00:52]} 27. Nc4 {[%clk 0:01:35]}  Rxa2 {[%clk 0:00:42]} 28. Rxd3 {[%clk 0:01:31]}  exd3 {[%clk 0:00:43]} 29. g3 {[%clk 0:01:28]}  Rc2 {[%clk 0:00:42]} 30. Na3 {[%clk 0:01:03]}  Ra2 {[%clk 0:00:33]} 31. Nb1 {[%clk 0:01:00]}  c5 {[%clk 0:00:28]} 32. Rc1 {[%clk 0:00:45]}  Rc2 {[%clk 0:00:27]} 33. Rd1 {[%clk 0:00:39]}  c4 {[%clk 0:00:21]} 34. Kg2 {[%clk 0:00:39]}  Ra2 {[%clk 0:00:18]} 35. Nc3 {[%clk 0:00:38]}  Rc2 {[%clk 0:00:18]} 36. Nd5 {[%clk 0:00:37]}  a5 {[%clk 0:00:18]} 37. Ra1 {[%clk 0:00:29]}  d2 {[%clk 0:00:16]} 38. Rd1 {[%clk 0:00:29]}  c3 {[%clk 0:00:16]} 39. Nxc3 {[%clk 0:00:27]}  Rxc3 {[%clk 0:00:17]} 40. Rxd2 {[%clk 0:00:28]}  Rc6 {[%clk 0:00:17]} 41. Ra2 {[%clk 0:00:23]}  Ra6 {[%clk 0:00:17]} 42. Ra4 {[%clk 0:00:20]}  Kg6 {[%clk 0:00:17]} 43. Kf3 {[%clk 0:00:20]}  Kf6 {[%clk 0:00:18]} 44. h4 {[%clk 0:00:19]}  g5 {[%clk 0:00:18]} 45. hxg5+ {[%clk 0:00:19]}  hxg5 {[%clk 0:00:19]} 46. Ke2 {[%clk 0:00:18]}  Ke5 {[%clk 0:00:19]} 47. Kd3 {[%clk 0:00:18]}  Kd5 {[%clk 0:00:19]} 48. Kc3 {[%clk 0:00:18]}  Kc5 {[%clk 0:00:19]} 49. Kb3 {[%clk 0:00:18]}  Kb6 {[%clk 0:00:19]} 50. Kc4 {[%clk 0:00:18]}  Kc6 {[%clk 0:00:19]} 51. f3 {[%clk 0:00:17]}  Kd6 {[%clk 0:00:19]} 52. Kb5 {[%clk 0:00:17]}  Ra8 {[%clk 0:00:19]} 53. Rxa5 {[%clk 0:00:18]}  Rxa5+ {[%clk 0:00:08]} 54. Kxa5 {[%clk 0:00:19]}  Kc5 {[%clk 0:00:09]} 55. Ka6 {[%clk 0:00:14]}  Kc4 {[%clk 0:00:09]} 56. Kb6 {[%clk 0:00:07]}  Kd3 {[%clk 0:00:10]} 57. e4 {[%clk 0:00:07]}  fxe4 {[%clk 0:00:10]} 58. fxe4 {[%clk 0:00:06]}  Kxe4 {[%clk 0:00:11]} 59. Kc5 {[%clk 0:00:07]}  Kf3 {[%clk 0:00:11]} 60. Kd4 {[%clk 0:00:08]}  Kxg3 {[%clk 0:00:12]} 61. Ke3 {[%clk 0:00:08]}  g4 {[%clk 0:00:10]} 62. Ke2 {[%clk 0:00:08]}  Kh2 {[%clk 0:00:10]} 63. Ke3 {[%clk 0:00:08]}  g3 {[%clk 0:00:11]} 64. Kf4 {[%clk 0:00:09]}  g2 {[%clk 0:00:12]} 65. Kg5 {[%clk 0:00:09]}  g1=Q+ {[%clk 0:00:12]} 66. Kh5 {[%clk 0:00:10]}  Qg8 {[%clk 0:00:09]} 67. Kh4 {[%clk 0:00:11]}  Qh7+ {[%clk 0:00:08]} 68. Kg5 {[%clk 0:00:11]}  Kg3 {[%clk 0:00:08]} 69. Kf6 {[%clk 0:00:11]}  Qg8 {[%clk 0:00:08]} 70. Ke5 {[%clk 0:00:11]}  Qf7 {[%clk 0:00:08]} 71. Kd4 {[%clk 0:00:12]}  Qe6 {[%clk 0:00:08]} 72. Kc3 {[%clk 0:00:12]}  Qd5 {[%clk 0:00:09]} 73. Kb4 {[%clk 0:00:13]}  Qc6 {[%clk 0:00:09]} 74. Kb3 {[%clk 0:00:13]}  Qc5 {[%clk 0:00:09]} 75. Kb2 {[%clk 0:00:14]}  Qc4 {[%clk 0:00:10]} 76. Kb1 {[%clk 0:00:15]}  Qc3 {[%clk 0:00:09]} 77. Ka2 {[%clk 0:00:15]}  Qb4 {[%clk 0:00:09]} 78. Ka1 {[%clk 0:00:16]}  Kf3 {[%clk 0:00:10]} 79. Ka2 {[%clk 0:00:16]}  Ke3 {[%clk 0:00:11]} 80. Ka1 {[%clk 0:00:17]}  Kd3 {[%clk 0:00:12]} 81. Ka2 {[%clk 0:00:18]}  Kc2 {[%clk 0:00:13]} 82. Ka1 {[%clk 0:00:19]}  Qb2# {[%clk 0:00:14]} 0-1


[Site "https://www.chess.com"]

[Event "Titled Tuesday Blitz October 31 Early 2023"]
[White "Phillips, Rene"]
[Black "Goh, Zi Han"]
[WhiteFideId "2056275"]
[BlackFideId "5819156"]
[WhiteElo "2008"]
[BlackElo "2280"]
[Result "0-1"]
[Round "4"]
[TimeControl "180+1"]
[Date "2023.10.31"]
[WhiteClock "0:00:00"]
[BlackClock "0:00:21"]
[Board "183"]

1. d4 {[%clk 0:02:59]}  Nf6 {[%clk 0:02:59]} 2. Bf4 {[%clk 0:03:00]}  d5 {[%clk 0:02:58]} 3. e3 {[%clk 0:03:00]}  c5 {[%clk 0:02:59]} 4. c3 {[%clk 0:03:00]}  Nc6 {[%clk 0:02:59]} 5. Nd2 {[%clk 0:03:00]}  Bf5 {[%clk 0:02:59]} 6. Qb3 {[%clk 0:02:59]}  Qb6 {[%clk 0:02:53]} 7. Ngf3 {[%clk 0:02:58]}  e6 {[%clk 0:02:50]} 8. h3 {[%clk 0:02:57]}  h6 {[%clk 0:02:48]} 9. Be2 {[%clk 0:02:56]}  c4 {[%clk 0:02:46]} 10. Qxb6 {[%clk 0:02:55]}  axb6 {[%clk 0:02:47]} 11. a3 {[%clk 0:02:55]}  Be7 {[%clk 0:02:45]} 12. O-O {[%clk 0:02:54]}  O-O {[%clk 0:02:45]} 13. Rac1 {[%clk 0:02:50]}  Nd7 {[%clk 0:02:37]} 14. Bd1 {[%clk 0:02:46]}  b5 {[%clk 0:02:34]} 15. Bc2 {[%clk 0:02:46]}  Bxc2 {[%clk 0:02:33]} 16. Rxc2 {[%clk 0:02:47]}  f6 {[%clk 0:02:28]} 17. e4 {[%clk 0:02:47]}  dxe4 {[%clk 0:01:53]} 18. Nxe4 {[%clk 0:02:46]}  Nb6 {[%clk 0:01:47]} 19. Bd6 {[%clk 0:02:39]}  Rfe8 {[%clk 0:01:36]} 20. Re2 {[%clk 0:02:36]}  Nd5 {[%clk 0:01:33]} 21. Bxe7 {[%clk 0:02:25]}  Rxe7 {[%clk 0:01:33]} 22. Nc5 {[%clk 0:02:06]}  Kf7 {[%clk 0:01:18]} 23. g3 {[%clk 0:02:04]}  f5 {[%clk 0:01:06]} 24. Rfe1 {[%clk 0:02:03]}  Rae8 {[%clk 0:00:54]} 25. Kg2 {[%clk 0:01:29]}  Kf6 {[%clk 0:00:40]} 26. h4 {[%clk 0:01:17]}  Nb8 {[%clk 0:00:28]} 27. Ne5 {[%clk 0:01:07]}  b6 {[%clk 0:00:28]} 28. Nxe6 {[%clk 0:00:18]}  Rxe6 {[%clk 0:00:27]} 29. f4 {[%clk 0:00:18]}  Nc6 {[%clk 0:00:20]} 30. Nd7+ {[%clk 0:00:13]}  Kf7 {[%clk 0:00:21]} 31. Ne5+ {[%clk 0:00:10]}  Nxe5 {[%clk 0:00:21]} 32. fxe5 {[%clk 0:00:09]}  R6e7 {[%clk 0:00:20]} 33. Rf1 {[%clk 0:00:00]}  Ke6 {[%clk 0:00:21]} 0-1


[Site "https://www.chess.com"]

[Event "Titled Tuesday Blitz October 31 Early 2023"]
[White "Gyulamiryan-koryun"]
[Black "Malikova777"]
[WhiteElo "1911"]
[BlackElo "2266"]
[Result "0-1"]
[Round "4"]
[TimeControl "180+1"]
[Date "2023.10.31"]
[WhiteClock "0:00:05"]
[BlackClock "0:02:05"]
[Board "187"]

1. Nf3 {[%clk 0:03:00]}  Nf6 {[%clk 0:02:59]} 2. g3 {[%clk 0:03:00]}  g6 {[%clk 0:03:00]} 3. Bg2 {[%clk 0:03:01]}  Bg7 {[%clk 0:03:01]} 4. O-O {[%clk 0:03:01]}  O-O {[%clk 0:03:02]} 5. d3 {[%clk 0:03:00]}  d5 {[%clk 0:03:02]} 6. Nbd2 {[%clk 0:03:00]}  c5 {[%clk 0:03:02]} 7. c4 {[%clk 0:03:00]}  d4 {[%clk 0:03:02]} 8. Rb1 {[%clk 0:02:59]}  Nc6 {[%clk 0:03:02]} 9. a3 {[%clk 0:02:59]}  a5 {[%clk 0:03:02]} 10. Re1 {[%clk 0:02:58]}  e5 {[%clk 0:03:01]} 11. Qc2 {[%clk 0:02:53]}  Be6 {[%clk 0:02:59]} 12. h3 {[%clk 0:02:51]}  Nd7 {[%clk 0:02:56]} 13. Nb3 {[%clk 0:02:34]}  f5 {[%clk 0:02:53]} 14. Ng5 {[%clk 0:02:29]}  Qe7 {[%clk 0:02:40]} 15. Bxc6 {[%clk 0:02:21]}  bxc6 {[%clk 0:02:40]} 16. Nxe6 {[%clk 0:02:21]}  Qxe6 {[%clk 0:02:39]} 17. a4 {[%clk 0:02:15]}  e4 {[%clk 0:02:35]} 18. Bd2 {[%clk 0:02:10]}  e3 {[%clk 0:02:26]} 19. fxe3 {[%clk 0:01:54]}  f4 {[%clk 0:02:23]} 20. g4 {[%clk 0:01:44]}  fxe3 {[%clk 0:02:22]} 21. Bxa5 {[%clk 0:01:37]}  h5 {[%clk 0:02:13]} 22. Rf1 {[%clk 0:01:17]}  hxg4 {[%clk 0:02:13]} 23. Rxf8+ {[%clk 0:01:12]}  Rxf8 {[%clk 0:02:14]} 24. Rf1 {[%clk 0:01:10]}  gxh3 {[%clk 0:02:09]} 25. Rxf8+ {[%clk 0:01:06]}  Bxf8 {[%clk 0:02:10]} 26. Bc7 {[%clk 0:00:06]}  Qg4+ {[%clk 0:02:08]} 27. Kf1 {[%clk 0:00:05]}  Qg2+ {[%clk 0:02:08]} 28. Ke1 {[%clk 0:00:05]}  Qg1# {[%clk 0:02:05]} 0-1


[Site "https://www.chess.com"]

[Event "Titled Tuesday Blitz October 31 Early 2023"]
[White "Bocangel Chavez, Marjoire J."]
[Black "Clawitter, Craig"]
[WhiteFideId "3810500"]
[BlackFideId "2023105"]
[WhiteElo "1888"]
[BlackElo "2246"]
[Result "0-1"]
[Round "4"]
[TimeControl "180+1"]
[Date "2023.10.31"]
[WhiteClock "0:00:00"]
[BlackClock "0:00:31"]
[Board "188"]

1. e4 {[%clk 0:03:00]}  e6 {[%clk 0:02:59]} 2. d4 {[%clk 0:02:56]}  d5 {[%clk 0:02:55]} 3. exd5 {[%clk 0:02:53]}  exd5 {[%clk 0:02:44]} 4. Bd3 {[%clk 0:02:52]}  Bd6 {[%clk 0:02:43]} 5. Ne2 {[%clk 0:02:51]}  Nc6 {[%clk 0:02:43]} 6. Nbc3 {[%clk 0:02:48]}  Qh4 {[%clk 0:02:37]} 7. Nxd5 {[%clk 0:02:24]}  Bg4 {[%clk 0:02:36]} 8. Ne3 {[%clk 0:02:09]}  Nf6 {[%clk 0:02:26]} 9. g3 {[%clk 0:01:42]}  Qh3 {[%clk 0:01:53]} 10. Nxg4 {[%clk 0:01:30]}  Nxg4 {[%clk 0:01:54]} 11. Nf4 {[%clk 0:01:08]}  Bxf4 {[%clk 0:01:49]} 12. Bxf4 {[%clk 0:01:02]}  O-O-O {[%clk 0:01:50]} 13. Bf5+ {[%clk 0:00:51]}  Kb8 {[%clk 0:01:50]} 14. Bxg4 {[%clk 0:00:42]}  Rhe8+ {[%clk 0:01:45]} 15. Be3 {[%clk 0:00:40]}  Qh6 {[%clk 0:01:23]} 16. O-O {[%clk 0:00:37]}  Rxe3 {[%clk 0:01:18]} 17. fxe3 {[%clk 0:00:32]}  Qxe3+ {[%clk 0:01:19]} 18. Kh1 {[%clk 0:00:25]}  Rxd4 {[%clk 0:01:17]} 19. Qf3 {[%clk 0:00:22]}  Qe7 {[%clk 0:00:52]} 20. Rad1 {[%clk 0:00:16]}  a6 {[%clk 0:00:44]} 21. Rxd4 {[%clk 0:00:14]}  Nxd4 {[%clk 0:00:45]} 22. Qg2 {[%clk 0:00:08]}  g6 {[%clk 0:00:38]} 23. Bf3 {[%clk 0:00:00]}  c6 {[%clk 0:00:31]} 0-1


[Site "https://www.chess.com"]

[Event "Titled Tuesday Blitz October 31 Early 2023"]
[White "Ilamparthi A R"]
[Black "Andreikin, Dmitry"]
[WhiteFideId "45015775"]
[BlackFideId "4158814"]
[WhiteElo "2923"]
[BlackElo "3102"]
[Result "0-1"]
[Round "5"]
[TimeControl "180+1"]
[Date "2023.10.31"]
[WhiteClock "0:00:03"]
[BlackClock "0:00:09"]
[Board "2"]

1. d4 {[%clk 0:03:00]}  Nf6 {[%clk 0:02:58]} 2. Nf3 {[%clk 0:03:01]}  e6 {[%clk 0:02:57]} 3. Bf4 {[%clk 0:03:01]}  b6 {[%clk 0:02:56]} 4. e3 {[%clk 0:03:00]}  Bb7 {[%clk 0:02:56]} 5. Nbd2 {[%clk 0:03:01]}  Nh5 {[%clk 0:02:52]} 6. Bg3 {[%clk 0:02:56]}  Nxg3 {[%clk 0:02:50]} 7. hxg3 {[%clk 0:02:57]}  g6 {[%clk 0:02:50]} 8. a4 {[%clk 0:02:57]}  a6 {[%clk 0:02:50]} 9. Be2 {[%clk 0:02:56]}  Bg7 {[%clk 0:02:49]} 10. c3 {[%clk 0:02:56]}  O-O {[%clk 0:02:44]} 11. O-O {[%clk 0:02:56]}  c5 {[%clk 0:02:38]} 12. Nc4 {[%clk 0:02:51]}  d5 {[%clk 0:02:30]} 13. Nce5 {[%clk 0:02:51]}  Nd7 {[%clk 0:02:22]} 14. Nxd7 {[%clk 0:02:40]}  Qxd7 {[%clk 0:02:22]} 15. a5 {[%clk 0:02:41]}  b5 {[%clk 0:02:03]} 16. Ne5 {[%clk 0:02:22]}  Qc7 {[%clk 0:01:58]} 17. Nd3 {[%clk 0:02:22]}  c4 {[%clk 0:01:51]} 18. Nc5 {[%clk 0:02:22]}  Bc6 {[%clk 0:01:41]} 19. Bf3 {[%clk 0:02:18]}  Rfd8 {[%clk 0:01:39]} 20. e4 {[%clk 0:02:15]}  Bf8 {[%clk 0:01:29]} 21. exd5 {[%clk 0:02:14]}  Bxd5 {[%clk 0:01:22]} 22. Ne4 {[%clk 0:02:06]}  Bg7 {[%clk 0:01:20]} 23. Qe2 {[%clk 0:02:02]}  e5 {[%clk 0:01:13]} 24. dxe5 {[%clk 0:01:56]}  Qxe5 {[%clk 0:01:12]} 25. Rfe1 {[%clk 0:01:51]}  b4 {[%clk 0:01:07]} 26. Rad1 {[%clk 0:01:44]}  Rab8 {[%clk 0:00:49]} 27. Rd2 {[%clk 0:01:20]}  Bxe4 {[%clk 0:00:32]} 28. Rxd8+ {[%clk 0:00:50]}  Rxd8 {[%clk 0:00:33]} 29. Qxe4 {[%clk 0:00:39]}  bxc3 {[%clk 0:00:25]} 30. bxc3 {[%clk 0:00:21]}  Qxc3 {[%clk 0:00:26]} 31. Kh2 {[%clk 0:00:14]}  Qxa5 {[%clk 0:00:23]} 32. Rd1 {[%clk 0:00:10]}  c3 {[%clk 0:00:19]} 33. Rxd8+ {[%clk 0:00:05]}  Qxd8 {[%clk 0:00:20]} 34. Qc4 {[%clk 0:00:06]}  a5 {[%clk 0:00:10]} 35. Bd5 {[%clk 0:00:06]}  Qf8 {[%clk 0:00:11]} 36. Qc6 {[%clk 0:00:05]}  Bd4 {[%clk 0:00:08]} 37. Kg1 {[%clk 0:00:02]}  Kg7 {[%clk 0:00:08]} 38. Bb3 {[%clk 0:00:03]}  Qc5 {[%clk 0:00:06]} 39. Qf3 {[%clk 0:00:02]}  Qc7 {[%clk 0:00:05]} 40. Qd5 {[%clk 0:00:01]}  Bf6 {[%clk 0:00:05]} 41. Bc2 {[%clk 0:00:01]}  a4 {[%clk 0:00:04]} 42. Bxa4 {[%clk 0:00:01]}  c2 {[%clk 0:00:05]} 43. Bxc2 {[%clk 0:00:01]}  Qxc2 {[%clk 0:00:05]} 44. Qf3 {[%clk 0:00:01]}  Qb2 {[%clk 0:00:05]} 45. Kh2 {[%clk 0:00:02]}  h5 {[%clk 0:00:06]} 46. Kg1 {[%clk 0:00:02]}  Bd4 {[%clk 0:00:06]} 47. Qf4 {[%clk 0:00:02]}  Qxf2+ {[%clk 0:00:06]} 48. Qxf2 {[%clk 0:00:02]}  Bxf2+ {[%clk 0:00:07]} 49. Kxf2 {[%clk 0:00:03]}  Kf6 {[%clk 0:00:07]} 50. Ke3 {[%clk 0:00:03]}  Kg5 {[%clk 0:00:08]} 51. Kf3 {[%clk 0:00:04]}  f6 {[%clk 0:00:08]} 52. Ke3 {[%clk 0:00:04]}  Kg4 {[%clk 0:00:09]} 53. Kf2 {[%clk 0:00:03]}  f5 {[%clk 0:00:09]} 0-1


[Site "https://www.chess.com"]

[Event "Titled Tuesday Blitz October 31 Early 2023"]
[White "Le, Quang Liem"]
[Black "Madaminov, Mukhiddin"]
[WhiteFideId "12401137"]
[BlackFideId "14210703"]
[WhiteElo "3014"]
[BlackElo "2857"]
[Result "1-0"]
[Round "5"]
[TimeControl "180+1"]
[Date "2023.10.31"]
[WhiteClock "0:00:56"]
[BlackClock "0:00:06"]
[Board "6"]

1. Nf3 {[%clk 0:03:00]}  Nf6 {[%clk 0:02:36]} 2. c4 {[%clk 0:03:00]}  g6 {[%clk 0:02:33]} 3. Nc3 {[%clk 0:03:01]}  Bg7 {[%clk 0:02:34]} 4. e4 {[%clk 0:03:01]}  e5 {[%clk 0:02:34]} 5. Nxe5 {[%clk 0:02:57]}  O-O {[%clk 0:02:34]} 6. Nf3 {[%clk 0:02:55]}  Re8 {[%clk 0:02:33]} 7. Bd3 {[%clk 0:02:55]}  Nxe4 {[%clk 0:02:34]} 8. Bxe4 {[%clk 0:02:56]}  Bxc3 {[%clk 0:02:34]} 9. dxc3 {[%clk 0:02:57]}  Rxe4+ {[%clk 0:02:34]} 10. Be3 {[%clk 0:02:57]}  Nc6 {[%clk 0:02:33]} 11. O-O {[%clk 0:02:44]}  d6 {[%clk 0:02:31]} 12. Qd5 {[%clk 0:02:33]}  Qe8 {[%clk 0:02:31]} 13. Rae1 {[%clk 0:02:30]}  Bf5 {[%clk 0:02:18]} 14. Ng5 {[%clk 0:02:17]}  Re5 {[%clk 0:02:11]} 15. Qd2 {[%clk 0:02:16]}  Qd7 {[%clk 0:02:01]} 16. Nf3 {[%clk 0:01:53]}  Re6 {[%clk 0:01:18]} 17. h3 {[%clk 0:01:46]}  h5 {[%clk 0:01:17]} 18. Bd4 {[%clk 0:01:31]}  Rae8 {[%clk 0:00:46]} 19. Rxe6 {[%clk 0:01:09]}  Bxe6 {[%clk 0:00:43]} 20. Bf6 {[%clk 0:01:05]}  Kh7 {[%clk 0:00:35]} 21. Ng5+ {[%clk 0:01:01]}  Kg8 {[%clk 0:00:34]} 22. Ne4 {[%clk 0:01:02]}  Kh7 {[%clk 0:00:28]} 23. Bg5 {[%clk 0:01:01]}  Qc8 {[%clk 0:00:19]} 24. Nf6+ {[%clk 0:01:00]}  Kg7 {[%clk 0:00:19]} 25. Bh6+ {[%clk 0:00:56]}  Kh8 {[%clk 0:00:06]} 26. Bf8 {[%clk 0:00:56]} 1-0


[Site "https://www.chess.com"]